Cogmind - Beta 17 @@@ ROGUE MODE // 2026.07.22 @ 01:32:22 Player: Elxavo Result: Destroyed by B-75 Beast with Heavy Plasma Cannon Performance ------------- Evolutions (3) 1500 Regions Visited (6) 1200 Robots Destroyed (82) 410 Value Destroyed (2512) 2512 Prototype IDs (8) 160 Alien Tech Used (0) 0 Bonus (0) 0 TOTAL SCORE: 5782 Bonus ------- None Cogmind --------- Core Integrity 0/700 Matter 300/300 Energy 99/100 System Corruption 1% Temperature Cool (12) Movement Core (350) Ox6 Location -7/Lower Caves Parts ------- > --- POWER (1) -------- (None) > --- PROPULSION (6) --- (None) > --- UTILITY (4) ------ Large Storage Unit Improved Signal Interpreter > --- WEAPON (2) ------- (None) > --- INVENTORY (15) --- Light Nuclear Core Improved Deuterium Engine Large Storage Unit Advanced Targeting Computer Transmission Jammer Improved Shield Generator Drone Bay (2/2) Improved EM Pulse Cannon Gauss Cannon Heavy Rocket Launcher Greatsword Peak State ------------ > --- POWER ------------ Light Nuclear Core > --- PROPULSION ------- Carbon-fiber Leg Carbon-fiber Leg Carbon-fiber Leg Carbon-fiber Leg Titanium Leg Improved Titanium Leg > --- UTILITY ---------- Improved Heat Sink Large Storage Unit Improved Signal Interpreter Improved Medium Armor Plating > --- WEAPON ----------- Advanced Beam Rifle Heavy Ion Cannon > --- INVENTORY -------- Nuclear Core Light Nuclear Core Improved Aluminum Leg Improved Aluminum Leg Large Storage Unit Advanced Targeting Computer Energy Filter Transmission Jammer Improved Medium Armor Plating Drone Bay Improved EM Pulse Cannon Heavy Ion Cannon Gauss Cannon Gauss Cannon Heavy Rocket Launcher [Rating: 46] Favorites ----------- Power Reinforced Deuterium Engine Engine Reinforced Deuterium Engine Power Core Light Nuclear Core Propulsion Carbon-fiber Leg Treads Light Treads Leg Carbon-fiber Leg Flight Unit Improved Flight Unit Utility Large Storage Unit Device Improved Heat Sink Storage Large Storage Unit Processor Improved Signal Interpreter Protection Light Armor Plating Weapon Heavy Ion Cannon Energy Gun Advanced Beam Rifle Energy Cannon Heavy Ion Cannon Ballistic Gun Assault Rifle Ballistic Cannon Gauss Cannon Special Weapon Mining Laser Build | -11 -10 -9 -9 -8 -7 -7 ------- Run | Yrd Mat Mat Sto Mat Fac Low Slots Evolved 6 | . . 2 . 2 2 . Power . | . . . . . . . Propulsion 4 | . . 2 . . 2 . Utility 2 | . . . . 2 . . Weapon . | . . . . . . . Parts Attached 73 | 7 6 10 20 15 11 4 Power 10 | 1 1 1 2 2 3 . Engine 7 | 1 1 1 2 1 1 . Core 3 | . . . . 1 2 . Reactor . | . . . . . . . Propulsion 27 | 2 . 6 11 4 3 1 Treads 9 | 2 . 4 2 . . 1 Leg 14 | . . 2 5 4 3 . Wheel . | . . . . . . . Hover . | . . . . . . . Flight 4 | . . . 4 . . . Utility 18 | 2 2 . 4 5 4 1 Device 7 | 1 . . 3 1 1 1 Storage 2 | 1 1 . . . . . Processor 2 | . . . . 2 . . Hackware . | . . . . . . . Protection 7 | . 1 . 1 2 3 . Artifact . | . . . . . . . Weapon 18 | 2 3 3 3 4 1 2 Energy Gun 4 | 1 . 1 . 2 . . Energy Cannon 5 | . 1 1 . 1 1 1 Ballistic Gun 7 | 1 1 1 3 1 . . Ballistic Cannon 1 | . . . . . . 1 Launcher . | . . . . . . . Special Weapon 1 | . 1 . . . . . Impact Weapon . | . . . . . . . Slashing Weapon . | . . . . . . . Piercing Weapon . | . . . . . . . Special Melee Weapon . | . . . . . . . Unidentified Prototypes 3 | . . . 1 2 . . Parts Lost 28 | . 2 2 4 2 4 14 Power 6 | . 1 1 . 2 1 1 Propulsion 11 | . . 1 1 . 3 6 Utility 6 | . 1 . 2 . . 3 Weapon 5 | . . . 1 . . 4 Highest Loss Streak 7 | . 1 1 1 1 3 7 To Critical Strikes 1 | . . . . . 1 . Average Backups 12 | 4 8 14 14 14 14 11 Power 1 | . 1 2 1 . . 2 Propulsion 2 | 1 2 3 4 6 2 . Utility 4 | . 2 4 4 2 4 5 Weapon 4 | 1 2 3 4 5 6 4 Tool/Special . | . . . . . . . Unused Backups 29 | . 3 1 . 4 10 11 Power 4 | . 1 . . . 1 2 Propulsion 4 | . 1 . . 2 1 . Utility 8 | . 1 1 . . 1 5 Weapon 13 | . . . . 2 7 4 Tool/Special . | . . . . . . . Average Slot Usage (%) 85 | . 96 95 97 97 98 53 Engine 6 | . 14 9 11 6 . 6 Core 1 | . . . . 2 6 . Treads 10 | . 27 40 19 . . . Leg 18 | . . 3 18 36 44 1 Device 7 | . 5 . 5 5 7 13 Storage 9 | . 14 11 11 9 7 7 Processor 4 | . . . . 9 7 7 Protection 5 | . 8 10 4 10 7 . Energy Gun 4 | . 3 9 5 3 7 . Energy Cannon 6 | . 6 8 . 8 7 6 Ballistic Gun 4 | . 15 2 16 6 . . Ballistic Cannon 1 | . . . . . . 6 Peak Build Rating 46 | 8 8 13 22 32 46 41 Average Rating 25 | 6 7 11 15 28 41 26 On Entrance 17 | . 8 7 13 18 32 41 Avg Prop Armor Cover (%) 9 | . . 9 . . . . Naked Turns . | . . . . . . . Heaviest Build 54 | 14 31 34 37 43 53 54 Greatest Support 97 | 40 40 83 86 58 97 76 Greatest Overweight (x) 17 | . . . 6 . . 17 Average Overweight (x) 1 | . . . . . . 13 Largest Inventory Capacity 15 | 8 15 15 15 15 15 15 Average Capacity 14 | 7 9 15 15 15 15 15 Most Carried 15 | 8 14 15 15 15 15 15 Average Carried 12 | 4 8 14 14 14 14 12 Final Capacity 15 | 8 15 15 15 15 15 15 Final Carried 15 | 8 14 15 15 15 15 12 Class Distribution -------------------- 88% | Mutant 11% | Scavenger-Mutant Dominant Class ---------------- Mutant | -10/Materials Scavenger-Mutant | -9/Materials Mutant | -9/Storage Mutant | -8/Materials Mutant | -7/Factory Mutant | -7/Lower Caves Resources | -11 -10 -9 -9 -8 -7 -7 ----------- Run | Yrd Mat Mat Sto Mat Fac Low Matter Collected 1823 | 282 155 232 470 345 195 144 Remotely . | . . . . . . . Salvage Created 3147 | 104 396 412 623 565 809 238 Parts 167 | 8 26 23 43 28 30 9 Haulers Intercepted 1 | . . . . 1 . . Recyclers Shooed 4 | 1 . . 1 . 2 . Parts Field Recycled . | . . . . . . . Retrieved Matter . | . . . . . . . Parts Self-Destructed 9 | . . . . . . 9 Prevented . | . . . . . . . Parts Restored . | . . . . . . . Kills | -11 -10 -9 -9 -8 -7 -7 ------- Run | Yrd Mat Mat Sto Mat Fac Low Combat Hostiles Destroyed 70 | . 13 11 16 10 14 6 Guns 44 | . 7 8 16 4 6 3 Cannons 25 | . 6 3 . 6 7 3 Classes Destroyed 10 | 2 3 2 . 2 1 . Worker 3 | . . 3 . . . . Tunneler 2 | 2 . . . . . . Hauler 1 | . . . . 1 . . Recycler 4 | 1 . . 1 . 2 . Watcher 2 | . 1 . . . 1 . Swarmer 24 | . 6 6 6 . 4 2 Grunt 24 | . 7 2 3 6 3 3 Brawler 2 | . . . . 1 1 . Sentry 16 | . . 3 7 3 2 1 Programmer 4 | . . . . . 4 . Best Kill Streak 5 | 1 3 4 5 4 4 3 Combat Bots Only 4 | . 3 3 4 4 4 3 Max Kills in Single Turn 2 | 1 1 2 2 1 1 1 Gunslinging . | . . . . . . . Exploded . | . . . . . . . Melee . | . . . . . . . Uniques/NPCs Destroyed . | . . . . . . . Combat | -11 -10 -9 -9 -8 -7 -7 -------- Run | Yrd Mat Mat Sto Mat Fac Low Hostile Shots Fired 534 | . 36 95 91 47 172 93 Missed 140 | . 4 23 29 10 60 14 Hits 394 | . 32 72 62 37 112 79 Projectile 394 | . 32 72 62 37 112 79 AOE 1 | . . . 1 . . . Critical Strikes 13 | . 1 3 1 2 2 4 Damage Taken 5692 | . 425 772 850 510 1517 1618 Core 990 | . 17 107 117 33 187 529 Absorbed by Shields 69 | . . . 17 52 . . Regen/Repaired (Parts) 216 | . 79 45 . . 92 . Core Remaining (%) 82 | 100 93 . 44 94 . . Volleys Fired 245 | 12 38 39 51 28 55 22 Largest 2 | 2 2 2 2 2 2 2 Hottest 136 | 70 100 116 79 131 136 126 Shots Fired 468 | 24 67 71 99 56 107 44 Gun 297 | 24 46 41 99 28 52 7 Cannon 170 | . 20 30 . 28 55 37 Launcher . | . . . . . . . Special 1 | . 1 . . . . . Kinetic 181 | 12 42 9 82 21 . 15 Thermal 287 | 12 25 62 17 35 107 29 Explosive . | . . . . . . . Electromagnetic . | . . . . . . . Robot Hit Streak 23 | 8 11 10 18 23 12 7 Robot Miss Streak 4 | 1 4 4 4 1 3 4 Penetration Max . | . . . . . . . Secondary Targets . | . . . . . . . Shots Hit Robots 313 | 17 40 45 69 45 69 28 Core Hits 126 | 5 19 20 28 20 23 11 Critical Kills . | . . . . . . . Critical Parts Destroyed 1 | . . . 1 . . . Critical Strikes 14 | . . 5 4 . 5 . Burn 13 | . . 5 3 . 5 . Destroy 1 | . . . 1 . . . Melee Attacks . | . . . . . . . Impact . | . . . . . . . Slashing . | . . . . . . . Piercing . | . . . . . . . Sneak Attacks . | . . . . . . . Combat Hostiles . | . . . . . . . Follow-up Attacks . | . . . . . . . Damage Inflicted 5984 | 174 518 804 1056 975 1735 722 Guns 3191 | 174 307 468 1007 325 810 100 Cannons 2722 | . 211 314 . 650 925 622 Explosions 32 | . . . 32 . . . Melee . | . . . . . . . Ramming 39 | . . 22 17 . . . Kinetic 1844 | 49 270 152 862 237 . 274 Thermal 4069 | 125 248 630 145 738 1735 448 Explosive 32 | . . . 32 . . . Electromagnetic . | . . . . . . . Impact . | . . . . . . . Slashing . | . . . . . . . Piercing . | . . . . . . . Highest Corruption 1 | . 1 . . . 1 1 Average Corruption 1 | . 1 . . . 1 1 Corruption Purged . | . . . . . . . Corruption Blocked . | . . . . . . . Effects 28 | . 3 . . . 12 13 Message Errors 5 | . 1 . . . 1 3 Matter Fused 12 | . . . . . 6 6 Heat Flow Errors 2 | . . . . . 2 . Energy Discharges 3 | . . . . . 2 1 Parts Rejected 1 | . 1 . . . . . Data Loss (minor) 2 | . . . . . . 2 Data Loss (major) 2 | . . . . . 1 1 Misfires 1 | . 1 . . . . . Overload Shots . | . . . . . . . Overflow Damage 58 | . . . . . 36 22 Projectiles 58 | . . . . . 36 22 Explosions . | . . . . . . . Melee . | . . . . . . . Knockbacks 1 | . . . . . . 1 Impact . | . . . . . . . Kinetic 1 | . . . . . . 1 Secondary . | . . . . . . . Self-Inflicted Damage 57 | . . . 57 . . . Shots 1 | . . . 1 . . . Rammed 3 | . . 3 . . . . Targets Rammed 5 | . . 3 2 . . . Kicked 2 | . . . 2 . . . Crushed . | . . . . . . . Highest Temperature 457 | 90 156 359 99 457 234 348 Average Temperature 96 | 35 39 125 36 181 51 161 Received Heat Transfer 1595 | . 135 219 225 266 288 462 Effects 13 | . . 2 . 9 2 . Shutdowns 3 | . . . . 3 . . Energy Bleed 1 | . . . . 1 . . Interference 4 | . . 2 . . 2 . Matter Decay 3 | . . . . 3 . . Short Circuit 1 | . . . . 1 . . Damage (minor) 1 | . . . . 1 . . Siege Activations . | . . . . . . . Martial Activations . | . . . . . . . Shielding Activations . | . . . . . . . Robots Disrupted . | . . . . . . . Combat Hostiles . | . . . . . . . Robots Corrupted . | . . . . . . . Combat Hostiles . | . . . . . . . Parts Fried . | . . . . . . . Impact Corruptions . | . . . . . . . Robots Melted 1 | . . . . . 1 . Combat Hostiles 1 | . . . . . 1 . Parts Melted 20 | 1 1 5 3 2 6 2 Heat Transferred 8214 | 370 555 1850 592 1184 2997 666 Parts Sabotaged . | . . . . . . . Parts Stolen . | . . . . . . . Parts Stripped . | . . . . . . . Power Chain Reactions . | . . . . . . . Alert | -11 -10 -9 -9 -8 -7 -7 ------- Run | Yrd Mat Mat Sto Mat Fac Low Maximum Alert Level 1 | . . . 1 . 1 . Low Security (%) 95 | 100 100 100 78 100 93 . Level 1 4 | . . . 21 . 6 . Level 2 . | . . . . . . . Level 3 . | . . . . . . . Level 4 . | . . . . . . . Level 5 . | . . . . . . . High Security . | . . . . . . . Max Security . | . . . . . . . Peak Influence 273 | 5 80 109 273 123 214 . Initial 108 | . . 13 42 108 30 . Average 42 | . 24 27 94 67 34 . Influence Increases 2181 | 15 324 334 522 257 474 255 Destroy 0b10 Robot/C 1400 | . 260 220 320 200 280 120 Destroy 0b10 Robot/NC 60 | 15 5 15 5 5 15 . Destroy Leader 326 | . 42 60 100 42 82 . Successful Hack 98 | . 16 7 24 7 44 . Disable Machine 30 | . . . 15 . 15 . Destroy Structure 27 | . 1 2 13 3 8 . Lose Combat Pursuer 240 | . . 30 45 . 30 135 Influence Decreases 2181 | 15 291 266 366 446 343 454 Entered New Map 340 | . . 20 59 149 38 74 Time Decay 1591 | 15 221 236 270 277 272 300 Lost Part 184 | . 10 10 37 20 27 80 Lost Ally 6 | . . . . . 6 . Purge Threat 60 | . 60 . . . . . Squads Dispatched 7 | . 2 1 1 . 3 . Investigation 2 | . 1 . 1 . . . Extermination 3 | . . . . . 3 . Reinforcement 2 | . 1 1 . . . . Assault . | . . . . . . . Garrison . | . . . . . . . Intercept . | . . . . . . . Searches Triggered . | . . . . . . . Construction Impeded . | . . . . . . . Haulers Reinforced . | . . . . . . . Active Scanning Responses . | . . . . . . . Cargo Convoy Interrupts . | . . . . . . . Stealth | -11 -10 -9 -9 -8 -7 -7 --------- Run | Yrd Mat Mat Sto Mat Fac Low Distress Signals 5 | . . . 2 1 2 . Communications Jammed . | . . . . . . . Distress Signals . | . . . . . . . Times Spotted 103 | . 19 15 24 11 20 14 Peak Tracking Total 7 | . 4 4 6 5 6 7 Tactical Retreats 15 | . . 1 3 . 2 9 Traps | -11 -10 -9 -9 -8 -7 -7 ------- Run | Yrd Mat Mat Sto Mat Fac Low Traps Triggered 5 | . 4 . 1 . . . Indirectly . | . . . . . . . Trap Hack Attempts . | . . . . . . . Triggered . | . . . . . . . Disarmed . | . . . . . . . Reprogrammed . | . . . . . . . Reused . | . . . . . . . Traps Extracted . | . . . . . . . Installed . | . . . . . . . Triggered . | . . . . . . . Machines | -11 -10 -9 -9 -8 -7 -7 ---------- Run | Yrd Mat Mat Sto Mat Fac Low Machines Disabled 4 | . . . 1 . 1 2 Max in Single Turn 1 | . . . 1 . 1 1 Machines Repaired . | . . . . . . . Machines Dismantled . | . . . . . . . Machines Sabotaged . | . . . . . . . Overloaded Fab Kills . | . . . . . . . Hacking | -11 -10 -9 -9 -8 -7 -7 --------- Run | Yrd Mat Mat Sto Mat Fac Low Machines Accessed 27 | . 6 3 7 2 8 1 Terminals 19 | . 5 2 7 2 2 1 Fabricators 2 | . . . . . 2 . Repair Stations 3 | . 1 1 . . 1 . Recycling Units . | . . . . . . . Scanalyzers 1 | . . . . . 1 . Garrison Access 2 | . . . . . 2 . Total Hacks 61 | . 15 9 16 2 15 4 Successful 30 | . 9 3 8 1 5 4 Failed 31 | . 6 6 8 1 10 . Catastrophic 6 | . . 2 1 1 2 . Database Lockouts . | . . . . . . . Manual . | . . . . . . . Terminals 42 | . 13 5 16 2 2 4 Fabricators 3 | . . . . . 3 . Repair Stations 9 | . 2 4 . . 3 . Recycling Units . | . . . . . . . Scanalyzers 2 | . . . . . 2 . Garrison Access 5 | . . . . . 5 . Terminal Hacks 22 | . 7 1 8 1 1 4 Record 4 | . . . . . . 4 Robot Analysis 1 | . . . 1 . . . Prototype ID Bank 3 | . 1 . 2 . . . Open Door 2 | . . . 2 . . . Branch Access Points 1 | . . . . 1 . . Terminal Index 1 | . 1 . . . . . Alert Level 1 | . 1 . . . . . Unreport Threat 1 | . 1 . . . . . Locate Traps 4 | . 1 . 2 . 1 . Hauler Manifests 1 | . 1 . . . . . Registered Components 1 | . . 1 . . . . Zone Layout 2 | . 1 . 1 . . . Fabricator Hacks 1 | . . . . . 1 . Build 1 | . . . . . 1 . Repair Station Hacks 6 | . 2 2 . . 2 . Scan Component 3 | . 1 1 . . 1 . Repair 3 | . 1 1 . . 1 . Recycling Unit Hacks . | . . . . . . . Scanalyzer 1 | . . . . . 1 . Retrieve Study 1 | . . . . . 1 . Garrison Access Hacks . | . . . . . . . Unauthorized Hacks . | . . . . . . . Terminals . | . . . . . . . Fabricators . | . . . . . . . Repair Stations . | . . . . . . . Recycling Units . | . . . . . . . Scanalyzers . | . . . . . . . Garrison Access . | . . . . . . . Data Cores Recovered . | . . . . . . . Used . | . . . . . . . Hacking Detections 20 | . 6 2 4 1 6 1 Full Trace Events 1 | . . 1 . . . . Feedback Events . | . . . . . . . Feedback Blocked . | . . . . . . . Robot Schematics Acquired . | . . . . . . . Robots Built 1 | . . . . . 1 . Authchips . | . . . . . . . Time 116 | . . . . . 116 . Total Robot Build Rating 3 | . . . . . 3 . Part Schematics Acquired . | . . . . . . . Parts Built . | . . . . . . . Authchips . | . . . . . . . Time . | . . . . . . . Total Part Build Rating . | . . . . . . . Part Studies Acquired 1 | . . . . . 1 . Parts Repaired 3 | . 1 1 . . 1 . Time 71 | . 26 26 . . 19 . Parts Recycled . | . . . . . . . Recycled Matter . | . . . . . . . Retrieved Matter . | . . . . . . . Retrieved Components . | . . . . . . . Parts Scanalyzed . | . . . . . . . Part Schematics Acquired . | . . . . . . . Parts Damaged . | . . . . . . . Bothacking | -11 -10 -9 -9 -8 -7 -7 ------------ Run | Yrd Mat Mat Sto Mat Fac Low Used RIF Installer . | . . . . . . . Robots Hacked . | . . . . . . . Non-combat . | . . . . . . . Combat . | . . . . . . . Robot Hacks Applied . | . . . . . . . Relay Couplers Released . | . . . . . . . Fabnet Peak Effective % . | . . . . . . . Robots Rewired . | . . . . . . . Allies Hacked . | . . . . . . . Hacks Repelled . | . . . . . . . Allies | -11 -10 -9 -9 -8 -7 -7 -------- Run | Yrd Mat Mat Sto Mat Fac Low Total Allies 1 | . . . . . 1 . Largest Group 1 | . . . . . 1 . Highest-Rated Group 15 | . . . . . 15 . Highest-Rated Ally 15 | . . . . . 15 . Total Orders 1 | . . . . . 1 . FOLLOW 1 | . . . . . 1 . Ally Attacks . | . . . . . . . Total Damage . | . . . . . . . Kills . | . . . . . . . Allies Corrupted . | . . . . . . . Allies Melted . | . . . . . . . Intel | -11 -10 -9 -9 -8 -7 -7 ------- Run | Yrd Mat Mat Sto Mat Fac Low Active Infowar (turns) 447 | 104 343 . . . . . Seismic 447 | 104 343 . . . . . Robot Analysis Total 1 | . . . 1 . . . Derelict Logs Recovered 1 | . . . . . . 1 Drone Launches . | . . . . . . . Drone Recoveries . | . . . . . . . Exploration | -11 -10 -9 -9 -8 -7 -7 ------------- Run | Yrd Mat Mat Sto Mat Fac Low Turns Passed 6415 | 177 944 598 584 664 1708 1740 Spaces Moved 2592 | 74 450 218 260 354 1014 222 Core 183 | 3 . . . . . 180 Treads 883 | 71 450 218 123 . . 21 Legs 1495 | . . . 106 354 1014 21 Wheels . | . . . . . . . Hover . | . . . . . . . Flight 31 | . . . 31 . . . Fastest Speed 50 | 50 160 160 101 120 120 122 Average Speed 187 | 155 160 160 140 120 120 752 Slowest Speed 900 | 160 160 160 500 120 123 900 Overloaded Moves . | . . . . . . . Propulsion Burnouts . | . . . . . . . Robots Hopped . | . . . . . . . Potential Cave-ins . | . . . . . . . Cave-ins Triggered . | . . . . . . . Exploration Rate (%) 34 | 3 83 22 44 33 27 29 Regions Visited 6 Branch Regions 2 Pre-discovered Areas . | . . . . . . . Known Exits Taken 2 | . . . . 1 1 . Unknown Exits Taken 4 | 1 1 1 1 . . . Scrap Searched 1 | . . . . . . 1 Spaces Dug 1 | . 1 . . . . . Terrain Destroyed 24 | . 1 . 10 2 4 7 Melee . | . . . . . . . Projectile 14 | . 1 . . 2 4 7 AOE 10 | . . . 10 . . . Terrain Rammed . | . . . . . . . Walls Destroyed . | . . . . . . . Machines Disabled . | . . . . . . . Actions | -11 -10 -9 -9 -8 -7 -7 --------- Run | Yrd Mat Mat Sto Mat Fac Low Total 3702 | 111 611 394 380 552 1404 250 Wait 652 | 11 98 111 23 128 280 1 Move 2586 | 73 449 217 259 353 1013 222 Hop . | . . . . . . . Pick Up 67 | 8 13 8 8 11 18 1 Fast Attach 22 | 7 1 3 7 4 . . Attach 25 | . 3 4 4 4 6 4 Detach . | . . . . . . . Swap 37 | . 3 4 11 8 11 . Drop 63 | . 6 5 15 16 21 . Fire 245 | 12 38 39 51 28 55 22 Melee . | . . . . . . . Ram . | . . . . . . . Kick 2 | . . . 2 . . . Crush 3 | . . 3 . . . . Escape Stasis . | . . . . . . . Rewire . | . . . . . . . Trap . | . . . . . . . Miscellaneous . | . . . . . . . Route ------- -11/Scrapyard -10/Materials (discovered 5 exits: *Mat x3 / [*Min] / [*Sub]) -9/Materials -9/Storage -8/Materials -7/Factory -7/Lower Caves History --------- Turn | Location | Event 14 | -11/Scrapyard | Discovered new exit (range 14) 178 | -11/Scrapyard | Entered Materials 314 | -10/Materials | Build established: Mutant 543 | -10/Materials | Discovered new exit (range 9) 560 | -10/Materials | Discovered new exit (range 7) 606 | -10/Materials | Discovered new exit (range 15) 755 | -10/Materials | Discovered new exit (range 12) 960 | -10/Materials | Repaired Lgt. Treads 1072 | -10/Materials | Discovered new exit (range 12) 1122 | -10/Materials | Entered another Materials area 1122 | -9/Materials | Evolved 2 slots: Propulsion x2 1248 | -9/Materials | Repaired Lgt. Armor Plating 1256 | -9/Materials | Discovered new exit (range 13) 1700 | -9/Materials | Build established: Scavenger-Mutant 1720 | -9/Materials | Entered Storage 2191 | -9/Storage | Core integrity fell below 50% 2242 | -9/Storage | Discovered new exit (range 12) 2285 | -9/Storage | Build established: Mutant 2304 | -9/Storage | Entered Materials 2304 | -8/Materials | Evolved 2 slots: Utility x2 2778 | -8/Materials | Discovered new exit (range 9) 2967 | -8/Materials | Identified exit to Factory 2968 | -8/Materials | Entered Factory 2968 | -7/Factory | Evolved 2 slots: Propulsion x2 3072 | -7/Factory | Repaired Carbon-fiber Leg 3683 | -7/Factory | Fabricated M-14 Sweeper (x1) 4356 | -7/Factory | Lost 3 parts (1p2n) 4660 | -7/Factory | Discovered new exit (range 8) 4675 | -7/Factory | Identified exit to Lower Caves 4676 | -7/Factory | Entered Lower Caves 4698 | -7/Lower Caves | Attracted the attention of an 0b10 base 4769 | -7/Lower Caves | Core integrity fell below 50% 4788 | -7/Lower Caves | Lost 7 parts (5n2w) 4914 | -7/Lower Caves | Learned Armory stockpile data 4914 | -7/Lower Caves | Learned Extension security intel 4982 | -7/Lower Caves | Learned 4 Factory zone layouts 6391 | -7/Lower Caves | Spotted B-75 Beast 6408 | -7/Lower Caves | Core integrity fell below 20% 6416 | -7/Lower Caves | Destroyed by B-75 Beast with Heavy Plasma Cannon Last Messages --------------- 05117_ Acquired 12 matter. 05245_ ZPZGPILLZ58AWMNK#FQK#QSMLX>P 05358_ System corrupted: Matter fused (-9). 05423_ System corrupted: Matter fused (-7). 05838_ System corrupted: Substantial component data lost. 05859_ System corrupted: Matter fused (-8). 05981_ System corrupted: Component data lost. 06035_ System corrupted: Matter fused (-7). 06224_ Searching scrap... 06224_ Found Kinecellerator. 06224_ Found 49 Matter. 06225_ Acquired 38 matter. 06341_ Acquired Med. Treads. 06391_ Gauss Cannon destroyed. 06391_ Med. Treads destroyed. 06395_ = EMXLQS82ZU6X99IMRRJXTSYYGNYY3ZE 06398_ Hvy. Ion Cannon destroyed. 06401_ Imp. Heat Sink destroyed. 06404_ Rnf. Deuterium Engine destroyed. 06410_ Energy Filter destroyed. Map ----- +----------------------------------------------------+ | ?????????????????????????????????????????????????? | | ?????????????????????????????????????????????????? | | ?????????????????????????????????????????????????? | | ?????????????????????????????????????????????????? | | ?????????????????????????????????????????????????? | | ?????????????????????????????????????????????????? | | ?????????????????????????????????????????????????? | | ??????????????????#####??????????????????????????? | | ?????????????????? ??????????????????????????? | | ?????????????????? ??? ??????????????????????? | | ????????????????? ?? #??????????????????????? | | ????????????????? ?? ##?????????????????????? | | ????????????????? ?? ##????????????????????? | | ???????????????? ## ?????????????????????? | | ????????????????? ## ???????? ????????????? | | ?????????????????? ???????? ????????????? | | ?????????????????? #??????? ???????????? | | ??????????????????? ##????? ???????????? | | ??????####?????????? ##??? ??????????? | | ?????## ##?????????# ##? ??????????? | | ?????# !##???????## ## ??????????? | | ?????# %######### ?????????? | | ?????# # % ?????????? | | ?????# ## ????????? | | ???### # ## ###### #??????????? | | ???# # # ##### % @ #??????????? | | ???# # ### ##;; #?????????? | | ???# ### #####%# #????????? | | ???## #???## ????????? | | ????## ####????? ???#????? | | ????## #???????? ???? ????? | | ????# #????????# ## ???? ????? | | ????# ##???????### #? #???? #???? | | ????# #####?????? #? ##??? ##### | | ????## ##?????## ## #? ???? ## | | ?????# #??????# #?##? ????# ## | | ?????## ###??????# #???? #???## ## # | | ??????# ##???????## ##??? ##??# ## # | | ??????# #######????## #### #### ## # | | ????### ####??# ###?## ## # | | ????# ####### ### ### ## | | ????## ### #???# #?## # # # | | ?????## ## #??## # ##?# # # | | ??????# #### #### ### #### ^^ # | | ??????# #??## #?# | | ??????#### #???## ##?####### # ^^# | | ?????????#########????## ##????????# # # | | ???????????????????????#######?????????########### | | ?????????????????????????????????????????????????? | | ?????????????????????????????????????????????????? | +----------------------------------------------------+ Best States ------------- Heat Dissipation 48 Energy Generation 16 Energy Capacity 290 Matter Stores 300 Matter Capacity 300 Sight Range 16 Terrain Scan Density 10 Armor Coverage 300 Evasion (%) 55 Recoil Reduction 4 Energy Filtering 30 Item Schematics ----------------- None Robot Schematics ------------------ None Fabricated ------------ M-14 Sweeper | x1 | -7/Factory | Preloaded Repaired ---------- Lgt. Treads | 43% | -10/Materials Lgt. Armor Plating | 50% | -9/Materials Carbon-fiber Leg | 16% | -7/Factory Studied --------- Titanium Leg | -7/Factory | Hacked Alien Tech Used ----------------- None Achievements -------------- None Challenges ------------ None Game ------ Seed FissionRelayHumpback Manual? 0 Play Time 01:17:24 Cumulative 123.3 hours Start 2026.07.21 @ 16:15:17 End 2026.07.22 @ 01:32:22 Sessions 3 Manual Loads 0 Difficulty Rogue Special Mode None Game No. 148 Rogue 148 Adventurer 0 Explorer 0 Win Type - Total 0 Types 0/0/0/0/0/0/0/0/0/0 Lore% 47 Gallery% 29 Achievement% 25 Wizard Run 0 Options --------- Layout 0 ASCII 0 Keyboard 0 Movement Mouse Keybinds 0 Fullscreen 1 Font 18/SmallcapsGlow Map View 76x50 Zoom Use 0% Tactical HUD 1 Map Filters NONE Filters LOW_CONTRAST(13,24,33) Steam 1 RUN: 0814a28d-b515-4a70-923c-979acd13375d